bitfinex-derivatives/quotes_BTCF0:USTF0_20250915
["timestamp","ask_amount","ask_price","bid_price","bid_amount"]
[1757949759284,0.3618,114640.0,114630.0,1.86237608]
[1757949759590,0.001,114640.0,114630.0,1.86237608]
[1757949761091,0.001,114640.0,114630.0,1.86233608]
[1757949763591,0.001,114640.0,114630.0,1.56233608]
[1757949763991,0.001,114640.0,114630.0,1.76233608]
[1757949764193,0.001,114640.0,114630.0,0.92681608]
[1757949764395,0.001,114640.0,114630.0,1.76225608]
[1757949764897,0.001,114640.0,114630.0,1.56225608]
[1757949766394,0.001,114640.0,114630.0,1.79225608]
[1757949766795,0.001,114640.0,114630.0,2.04225608]
[1757949768499,0.001,114640.0,114630.0,1.35147]
[1757949768694,0.001,114640.0,114630.0,1.20681608]
[1757949769096,0.001,114640.0,114630.0,2.04213608]
[1757949769304,0.001,114640.0,114630.0,2.08213608]
[1757949771403,0.001,114640.0,114630.0,1.24681608]
[1757949771606,0.001,114640.0,114630.0,2.08205608]
[1757949772996,0.001,114640.0,114630.0,1.81205608]
[1757949773198,0.001,114640.0,114630.0,0.97681608]
[1757949773495,0.001,114640.0,114630.0,1.81201608]
[1757949774303,0.001,114640.0,114630.0,1.43123]
[1757949774505,0.001,114640.0,114630.0,2.12201608]
[1757949779105,0.001,114640.0,114630.0,2.03201608]
[1757949779306,0.001,114640.0,114630.0,1.68662304]
[1757949779502,0.73036304,114640.0,114630.0,0.25603]
[1757949779701,0.73036304,114640.0,114630.0,1.43646304]
[1757949779903,0.38497,114640.0,114630.0,1.43646304]
[1757949780206,0.38497,114640.0,114630.0,1.25646304]
[1757949780406,0.02417,114640.0,114630.0,1.25646304]
[1757949780708,0.001,114640.0,114630.0,1.52646304]
[1757949781498,0.3618,114640.0,114630.0,0.42142304]
[1757949781701,0.38497,114640.0,114630.0,1.25642304]
[1757949783305,1.34739723,114640.0,114630.0,0.001]
[1757949783503,1.35422723,114640.0,114630.0,0.001]
[1757949784110,1.34739723,114640.0,114630.0,0.03695]
[1757949784312,1.34739723,114640.0,114630.0,0.01397]
[1757949784609,1.34739723,114640.0,114630.0,0.03695]
[1757949785410,1.41823408,114640.0,114630.0,0.03695]
[1757949786106,1.41823408,114640.0,114630.0,0.01397]
[1757949786506,1.41823408,114640.0,114630.0,0.03695]
[1757949789013,1.07284104,114640.0,114630.0,0.03695]
[1757949789710,0.40661115,114640.0,114630.0,0.38234304]
[1757949789905,0.75200419,114640.0,114630.0,0.38234304]
[1757949790110,0.40661115,114640.0,114630.0,0.38234304]
[1757949790311,0.75200419,114640.0,114630.0,0.03695]
[1757949790511,1.09739723,114640.0,114630.0,0.03695]
[1757949790711,1.35422723,114640.0,114630.0,0.001]
[1757949791111,2.18910723,114640.0,114630.0,0.001]
[1757949791815,2.18227723,114640.0,114630.0,0.03695]
[1757949792217,1.34739723,114640.0,114630.0,0.03695]
[1757949792711,0.65661115,114640.0,114630.0,0.03695]
[1757949793014,1.00200419,114640.0,114630.0,0.38234304]
[1757949793317,0.65661115,114640.0,114630.0,0.38234304]
[1757949793516,0.40661115,114640.0,114630.0,0.38234304]
[1757949793906,0.73036304,114640.0,114630.0,0.38234304]
[1757949794117,0.38497,114640.0,114630.0,0.38234304]
[1757949794709,0.38497,114640.0,114630.0,0.03695]
[1757949795115,0.38497,114640.0,114630.0,0.38234304]
[1757949795716,0.38497,114640.0,114630.0,1.21710304]
[1757949795913,0.3618,114640.0,114630.0,1.83249608]
[1757949796117,0.3618,114640.0,114630.0,0.97773608]
[1757949796314,0.3618,114640.0,114630.0,2.10249608]
[1757949797115,0.001,114640.0,114630.0,2.10249608]
[1757949798217,0.001,114640.0,114630.0,2.10245608]
[1757949798718,0.0001,114650.0,114640.0,0.01297]
[1757949798915,0.0001,114650.0,114640.0,1.74292912]
[1757949799110,0.3609,114670.0,114660.0,0.03595]
[1757949799319,0.3608,114670.0,114660.0,0.72673608]
[1757949799516,0.3608,114670.0,114660.0,1.56137608]
[1757949799912,0.3608,114670.0,114660.0,1.86137608]
[1757949800111,0.38397,114670.0,114660.0,1.56137608]
[1757949800311,0.38397,114670.0,114660.0,1.11059]
[1757949800512,0.3608,114670.0,114660.0,1.56137608]
[1757949800914,0.3648,114670.0,114660.0,1.56137608]
[1757949801122,0.3648,114670.0,114660.0,1.58183561]
[1757949801416,0.3648,114670.0,114660.0,2.21722865]
[1757949801620,0.3648,114670.0,114660.0,1.63262865]
[1757949801815,0.3648,114670.0,114660.0,2.12094453]
[1757949801816,0.3668,114670.0,114660.0,2.12094453]
[1757949802012,0.3668,114670.0,114660.0,1.28642453]
[1757949802215,0.3668,114670.0,114660.0,2.12094453]
[1757949802512,0.3668,114670.0,114660.0,0.69143703]
[1757949802717,0.38997,114670.0,114660.0,1.23591703]
[1757949803318,0.38997,114670.0,114660.0,1.23587703]
[1757949803522,0.38997,114670.0,114660.0,0.40143703]
[1757949803711,0.38997,114670.0,114660.0,1.23587703]
[1757949804113,0.38997,114670.0,114660.0,0.89088953]
[1757949804321,0.38997,114670.0,114660.0,1.23587703]
[1757949804916,0.38997,114670.0,114660.0,0.40143703]
[1757949805119,0.38997,114670.0,114660.0,1.23583703]
[1757949806322,0.38997,114670.0,114660.0,0.47203845]
[1757949806523,0.38997,114670.0,114660.0,1.30635845]
[1757949807121,0.38997,114670.0,114660.0,0.47203845]
[1757949807319,0.38997,114670.0,114660.0,0.87027]
[1757949807822,0.38997,114670.0,114660.0,1.2152575]
[1757949809525,0.38997,114670.0,114660.0,0.87027]
[1757949809724,0.38997,114670.0,114660.0,1.2152575]
[1757949810120,0.38997,114670.0,114660.0,0.3809375]
[1757949810321,0.38997,114670.0,114660.0,1.2150975]
[1757949810518,0.9849575,114670.0,114660.0,0.03595]
[1757949810723,0.9849575,114670.0,114660.0,0.82151]
[1757949811025,0.63997,114670.0,114660.0,0.82151]
[1757949811427,0.38997,114670.0,114660.0,1.1664975]
[1757949819428,0.38997,114670.0,114660.0,0.86987]
[1757949819627,0.38997,114670.0,114660.0,1.2148575]
[1757949822026,0.3668,114670.0,114660.0,1.2148575]
[1757949822818,0.3668,114670.0,114660.0,1.559845]
[1757949823028,0.3668,114670.0,114660.0,1.58024703]
[1757949823932,0.006,114670.0,114660.0,2.06024703]
[1757949824836,0.0001,114680.0,114670.0,0.03716]
[1757949825037,0.3609,114690.0,114680.0,0.03716]
[1757949825235,0.3608,114690.0,114680.0,1.2158275]
[1757949825535,0.3608,114690.0,114680.0,1.2558275]
[1757949825737,0.3608,114690.0,114680.0,1.26462592]
[1757949826834,0.3648,114690.0,114680.0,1.56961342]
[1757949827038,0.004,114690.0,114680.0,1.76961342]
[1757949827229,0.004,114690.0,114680.0,2.01961342]
[1757949827536,0.004,114690.0,114680.0,1.18593342]
[1757949827729,0.004,114690.0,114680.0,2.08863909]
[1757949828034,0.004,114690.0,114680.0,1.25507909]
[1757949828334,0.004,114690.0,114680.0,2.08863909]
[1757949828535,0.004,114690.0,114680.0,2.44943909]
[1757949828729,0.006,114690.0,114680.0,2.44943909]
[1757949828930,0.006,114690.0,114680.0,2.44939909]
[1757949829631,0.004,114690.0,114680.0,2.53656939]
[1757949829832,0.001,114690.0,114680.0,2.53656939]
[1757949830037,0.002,114690.0,114680.0,2.53656939]
[1757949830228,0.002,114690.0,114680.0,2.44939909]
[1757949830433,0.002,114690.0,114680.0,2.44931909]
[1757949831031,0.002,114690.0,114680.0,2.53648959]
[1757949831531,0.002,114690.0,114680.0,1.61587909]
[1757949831732,0.002,114690.0,114680.0,2.44927909]
[1757949832030,0.002,114690.0,114680.0,2.44923909]
[1757949832740,0.002,114690.0,114680.0,2.53640959]
[1757949833041,0.002,114690.0,114680.0,2.44923909]
[1757949833638,0.002,114690.0,114680.0,2.44911909]
[1757949835240,0.002,114690.0,114680.0,2.44907909]
[1757949835842,0.002,114690.0,114680.0,1.61587909]
[1757949836036,0.002,114690.0,114680.0,2.44903909]
[1757949836740,0.001,114690.0,114680.0,2.44903909]
[1757949837640,0.001,114690.0,114680.0,1.61587909]
[1757949837841,0.001,114690.0,114680.0,2.44891909]
[1757949839536,0.0001,114700.0,114690.0,0.03581]
[1757949839736,0.37858985,114710.0,114700.0,0.03581]
[1757949839949,0.37848985,114710.0,114700.0,1.2137175]
[1757949840138,0.40053985,114710.0,114700.0,0.3807975]
[1757949840338,0.40053985,114710.0,114700.0,1.2136775]
[1757949840646,0.40053985,114710.0,114700.0,0.3807975]
[1757949840946,0.40053985,114710.0,114700.0,1.2136775]
[1757949841650,0.65053985,114710.0,114700.0,1.2136775]
[1757949841943,0.65053985,114710.0,114700.0,1.2136375]
[1757949842146,0.65053985,114710.0,114700.0,0.86865]
[1757949842343,0.65053985,114710.0,114700.0,0.3807975]
[1757949842548,0.65053985,114710.0,114700.0,0.86861]
[1757949842740,0.65253985,114710.0,114700.0,1.2135975]
[1757949843046,0.65453985,114710.0,114700.0,1.2135975]
[1757949843550,0.99952735,114710.0,114700.0,0.0226]
[1757949843743,1.03001735,114710.0,114690.0,0.84607]
[1757949843943,0.38285,114700.0,114690.0,0.86867]
[1757949844137,0.38285,114700.0,114690.0,0.86857]
[1757949844451,0.40451181,114700.0,114690.0,1.2135575]
[1757949846450,0.40551181,114700.0,114690.0,1.2135575]
[1757949846652,0.40751181,114700.0,114690.0,1.2135575]
[1757949847148,0.4075219,114700.0,114690.0,1.2135575]
[1757949847654,0.38585,114700.0,114690.0,1.2135575]
[1757949848350,0.3638,114700.0,114690.0,1.608545]
[1757949848562,0.3638,114700.0,114690.0,2.128545]
[1757949848563,0.003,114700.0,114690.0,2.128545]
[1757949848761,0.003,114700.0,114690.0,2.088545]
[1757949848948,0.003,114700.0,114690.0,1.75937]
[1757949849254,0.003,114700.0,114690.0,2.449345]
[1757949849459,0.003,114700.0,114690.0,2.46956626]
[1757949849756,0.001,114700.0,114690.0,2.10876626]
[1757949850255,0.001,114700.0,114690.0,1.85856626]
[1757949851051,0.001,114700.0,114690.0,2.21936626]
[1757949851247,0.001,114700.0,114690.0,1.85856626]
[1757949851955,0.001,114700.0,114690.0,1.85844626]
[1757949852552,0.38385,114700.0,114690.0,0.33603126]
[1757949852755,0.38385,114700.0,114690.0,0.88847126]
[1757949853254,0.38385,114700.0,114690.0,1.23345876]
[1757949853455,0.40556784,114700.0,114690.0,1.23345876]
[1757949853952,0.41414661,114700.0,114690.0,1.23345876]
[1757949854854,0.66414661,114700.0,114690.0,0.88847126]
[1757949855060,0.66414661,114700.0,114690.0,0.05603126]
[1757949855353,1.03693753,114700.0,114690.0,0.83228]
[1757949855555,1.05811084,114700.0,114690.0,0.03581]
[1757949855760,0.71312334,114700.0,114690.0,0.03581]
[1757949856059,0.71312334,114700.0,114690.0,0.86809]
[1757949856257,0.68192003,114700.0,114690.0,0.03581]
[1757949857059,0.75085843,114700.0,114690.0,0.0226]
[1757949857263,1.09584593,114700.0,114690.0,0.0226]
[1757949858059,1.09584593,114700.0,114690.0,0.03581]
[1757949858455,0.75085843,114700.0,114690.0,0.03581]
[1757949859061,1.09584593,114700.0,114690.0,0.03581]
[1757949859756,0.75085843,114700.0,114690.0,0.03581]
[1757949860062,0.75085843,114700.0,114680.0,0.3590075]
[1757949860263,0.3608,114690.0,114680.0,1.1911675]
[1757949860458,0.38251784,114690.0,114680.0,1.1910675]
[1757949861765,0.3608,114690.0,114680.0,1.1920675]
[1757949863766,0.38285,114690.0,114680.0,1.55965974]
[1757949865072,0.38285,114690.0,114680.0,0.86968]
[1757949865268,0.38285,114690.0,114680.0,1.55965974]
[1757949865573,0.40455406,114690.0,114680.0,1.55965974]
[1757949866172,0.38285,114690.0,114680.0,1.55965974]
[1757949867277,0.3608,114690.0,114680.0,1.55965974]
[1757949869075,0.3608,114690.0,114680.0,1.80965974]
[1757949870176,0.3608,114690.0,114680.0,0.97749974]
[1757949870374,0.3608,114690.0,114680.0,1.80929974]
[1757949870974,0.3608,114690.0,114680.0,1.87892657]
[1757949871667,0.3608,114690.0,114680.0,1.04712657]
[1757949871873,0.37867342,114700.0,114680.0,1.89888657]
[1757949872074,0.42170579,114700.0,114690.0,0.37910987]
[1757949872274,0.42160579,114700.0,114690.0,0.39910987]
[1757949873470,0.42160579,114700.0,114690.0,1.23070987]
[1757949874277,0.42260579,114700.0,114690.0,1.21070987]
[1757949876174,0.42260579,114700.0,114690.0,0.86572]
[1757949876373,0.40079342,114700.0,114690.0,1.21070987]
[1757949876767,0.42261457,114700.0,114690.0,0.37910987]
[1757949876973,0.40079342,114700.0,114690.0,1.21054987]
[1757949877475,0.40079342,114700.0,114690.0,0.86556]
[1757949877679,0.40079342,114700.0,114690.0,1.21054987]
[1757949878483,0.422621,114700.0,114690.0,0.86556]
[1757949878778,0.422621,114700.0,114690.0,1.21054987]
[1757949879882,0.422621,114700.0,114690.0,0.37910987]
[1757949880081,0.422621,114700.0,114690.0,1.21038987]
[1757949880976,0.422621,114700.0,114690.0,0.03412]
[1757949881183,0.422621,114700.0,114690.0,1.21030987]
[1757949881577,0.422621,114700.0,114690.0,0.86532]
[1757949881774,0.422621,114700.0,114690.0,1.21030987]
[1757949883274,0.421521,114700.0,114690.0,1.21030987]
[1757949883691,0.421521,114700.0,114690.0,1.55529974]
[1757949886284,0.400301,114700.0,114690.0,1.57529974]
[1757949886486,0.01877342,114700.0,114690.0,2.08529974]
[1757949886981,0.01877342,114700.0,114690.0,2.44609974]
[1757949887187,0.001,114700.0,114690.0,2.44609974]
[1757949887389,0.001,114700.0,114690.0,1.61489974]
[1757949887780,0.001,114700.0,114690.0,2.44573974]
[1757949889686,0.0001,114710.0,114700.0,0.03412]
[1757949889987,0.3609,114720.0,114710.0,0.03412]
[1757949890294,0.38212,114730.0,114720.0,0.03412]
[1757949890588,0.38202,114730.0,114720.0,0.72409974]
[1757949890781,0.403834,114730.0,114720.0,0.72409974]
[1757949890986,0.38202,114730.0,114720.0,0.72409974]
[1757949891187,0.3608,114730.0,114720.0,0.72409974]
[1757949891493,0.3608,114730.0,114720.0,0.73301989]
[1757949891992,0.3638,114730.0,114720.0,0.93301989]
[1757949892190,0.003,114730.0,114720.0,0.93301989]
[1757949893287,0.003,114730.0,114720.0,0.73301989]
[1757949893486,0.02422,114730.0,114720.0,1.55453974]
[1757949893683,0.02622,114730.0,114720.0,0.86456]
[1757949893887,0.02622,114730.0,114720.0,1.55453974]
[1757949894289,0.02622,114730.0,114720.0,1.55449974]
[1757949894695,0.02622,114730.0,114720.0,1.62571236]
[1757949894893,0.02622,114730.0,114720.0,0.79531236]
[1757949895094,0.02622,114730.0,114720.0,1.62563236]
[1757949897005,0.005,114730.0,114720.0,1.62563236]
[1757949897195,0.02824,114730.0,114720.0,1.62563236]
[1757949897391,0.02824,114730.0,114720.0,1.62547236]
[1757949897796,0.02824,114730.0,114720.0,0.79531236]
[1757949898002,0.38904,114730.0,114720.0,0.72409974]
[1757949898196,0.38904,114730.0,114720.0,1.55421974]
[1757949898595,0.73402987,114730.0,114720.0,1.55421974]
[1757949898796,0.38904,114730.0,114720.0,1.55421974]
[1757949899200,0.38904,114730.0,114720.0,0.86424]
[1757949899503,0.38904,114730.0,114720.0,1.55421974]
[1757949900200,0.3658,114730.0,114720.0,1.55421974]
[1757949902401,0.38904,114730.0,114720.0,1.55401974]
[1757949903806,0.003,114730.0,114720.0,1.62208191]
[1757949904000,0.001,114730.0,114720.0,1.64208191]
[1757949904201,0.002,114730.0,114720.0,1.98707178]
[1757949904802,0.002,114730.0,114720.0,1.96707178]
[1757949905003,0.002,114730.0,114720.0,1.79208191]
[1757949905603,0.002,114730.0,114720.0,2.13707178]
[1757949907004,0.002,114730.0,114720.0,1.79208191]
[1757949907406,0.002,114730.0,114720.0,2.13707178]
[1757949908505,0.002,114730.0,114720.0,2.76819416]
[1757949909104,0.002,114730.0,114720.0,1.93827416]
[1757949909300,0.0001,114740.0,114730.0,0.03566]
[1757949909504,0.0001,114750.0,114740.0,0.03566]
[1757949909705,0.3609,114760.0,114740.0,1.59499974]
[1757949909905,0.40593363,114760.0,114750.0,0.38064987]
[1757949910109,0.40583363,114760.0,114750.0,0.38064987]
[1757949911511,0.41483363,114760.0,114750.0,0.38064987]
[1757949913011,0.6198,114760.0,114750.0,0.4005791]
[1757949913212,0.64304,114760.0,114750.0,0.4005791]
[1757949913407,0.3698,114760.0,114750.0,0.74556897]
[1757949913614,0.38414,114770.0,114760.0,0.03566]
[1757949913812,0.40583476,114770.0,114760.0,1.55471974]
[1757949914217,0.38259476,114770.0,114760.0,1.55471974]
[1757949914917,0.40583476,114770.0,114760.0,1.55463974]
[1757949915418,0.40583476,114770.0,114760.0,1.55459974]
[1757949915618,0.40583476,114770.0,114760.0,0.72563974]
[1757949915816,0.40583476,114770.0,114760.0,1.55455974]
[1757949916120,0.38259476,114770.0,114760.0,1.55455974]
[1757949916714,0.38359476,114770.0,114760.0,1.55455974]
[1757949917118,0.38359476,114770.0,114760.0,0.72563974]
[1757949917421,0.40683476,114770.0,114760.0,1.55443974]
[1757949917921,0.38359476,114770.0,114760.0,1.55443974]
[1757949918322,0.38359476,114770.0,114760.0,0.86446]
[1757949918525,0.38359476,114770.0,114760.0,1.55443974]
[1757949918720,0.40683476,114770.0,114760.0,1.55443974]
[1757949921619,0.02279476,114770.0,114760.0,1.55443974]
[1757949921823,0.001,114770.0,114760.0,1.55443974]
[1757949924526,0.02278288,114770.0,114760.0,1.55443974]
[1757949925323,0.40682288,114770.0,114760.0,0.72563974]
[1757949925625,0.40682288,114770.0,114760.0,1.55391974]
[1757949925818,0.40682288,114770.0,114760.0,1.20845916]
[1757949927625,0.40682288,114770.0,114760.0,0.38017916]
[1757949927826,0.40682288,114770.0,114760.0,1.20833916]
[1757949929228,0.40682288,114770.0,114760.0,0.38017916]
[1757949929525,0.40682288,114770.0,114760.0,1.20825916]
[1757949935133,0.38358288,114770.0,114760.0,1.20825916]
[1757949935529,0.40595288,114770.0,114760.0,0.03566]
[1757949935728,0.40595288,114770.0,114760.0,1.20793916]
[1757949936131,0.04515288,114770.0,114760.0,1.20793916]
[1757949936334,0.40595288,114770.0,114760.0,1.20793916]
[1757949937634,0.40595288,114770.0,114760.0,1.27846513]
[1757949938331,1.00447204,114770.0,114750.0,1.46273923]
[1757949938532,0.75457204,114770.0,114760.0,0.85088]
[1757949938732,0.75447204,114770.0,114760.0,0.85088]
[1757949940125,0.75047204,114770.0,114760.0,0.86463]
[1757949940730,0.40595288,114770.0,114760.0,0.86463]
[1757949941030,0.40495288,114770.0,114760.0,0.86463]
[1757949941532,0.40495288,114770.0,114760.0,0.86451]
[1757949941933,0.40595288,114770.0,114760.0,0.86451]
[1757949942440,0.40595288,114770.0,114760.0,1.20902916]
[1757949944545,0.40595288,114770.0,114760.0,0.38146916]
[1757949945040,0.40595288,114770.0,114760.0,0.82736]
[1757949945041,0.75047204,114770.0,114760.0,0.82736]
[1757949945239,0.75047204,114770.0,114750.0,0.86009923]
[1757949945445,0.38317,114760.0,114750.0,0.88329923]
[1757949945628,0.40495288,114760.0,114750.0,0.88319923]
[1757949945939,0.40495288,114760.0,114750.0,1.22771839]
[1757949946240,0.65495288,114760.0,114750.0,0.04312923]
[1757949946539,1.00950204,114760.0,114750.0,0.01992923]
[1757949947336,0.66498288,114760.0,114750.0,0.01992923]
[1757949947538,1.00950204,114760.0,114750.0,0.01992923]
[1757949947733,1.00950204,114760.0,114750.0,0.04312923]
[1757949948439,0.65495288,114760.0,114750.0,0.05687923]
[1757949948640,0.99947204,114760.0,114750.0,0.04312923]
[1757949949342,0.99947204,114760.0,114750.0,0.05687923]
[1757949949343,0.65495288,114760.0,114750.0,0.05687923]
[1757949954546,0.65495288,114760.0,114750.0,0.04312923]
[1757949954945,0.99947204,114760.0,114750.0,0.04312923]
[1757949955746,0.65495288,114760.0,114750.0,0.04312923]
[1757949956044,0.99947204,114760.0,114750.0,0.04312923]
[1757949957844,0.99947204,114760.0,114750.0,0.01992923]
[1757949958141,1.00347204,114760.0,114740.0,0.0001]
[1757949958446,1.55482916,114750.0,114740.0,0.0001]
[1757949958643,1.57653204,114750.0,114740.0,0.02218]
[1757949959242,1.64502924,114750.0,114740.0,0.02318]
[1757949959743,1.64502924,114750.0,114740.0,0.02518]
[1757949960045,1.64498924,114750.0,114740.0,0.02518]
[1757949960550,1.64498924,114750.0,114740.0,0.003]
[1757949961250,0.81818924,114750.0,114740.0,0.003]
[1757949961445,1.64494924,114750.0,114740.0,0.003]
[1757949961643,1.64490924,114750.0,114740.0,0.003]
[1757949963652,2.2394284,114750.0,114740.0,0.003]
[1757949964650,2.27063171,114750.0,114740.0,0.003]
[1757949964948,2.27055171,114750.0,114740.0,0.003]
[1757949966150,1.44391171,114750.0,114740.0,0.003]
[1757949966353,2.2393084,114750.0,114740.0,0.003]
[1757949967448,1.55027008,114750.0,114740.0,0.003]
[1757949967748,2.2393084,114750.0,114740.0,0.003]
[1757949968248,1.44391171,114750.0,114740.0,0.003]
[1757949968446,1.89478924,114750.0,114740.0,0.003]
[1757949970247,2.27051171,114750.0,114740.0,0.003]
[1757949973055,2.02051171,114750.0,114740.0,0.003]
[1757949973258,0.37893916,114740.0,114730.0,0.0001]
[1757949973555,0.76152204,114740.0,114720.0,0.01336]
[1757949973748,1.55422916,114730.0,114720.0,0.03554]
[1757949973949,1.57601204,114730.0,114720.0,0.03544]
[1757949975245,1.57601204,114730.0,114720.0,0.37995916]
[1757949975246,1.22949288,114730.0,114720.0,0.37995916]
[1757949975454,0.40117288,114730.0,114720.0,0.37995916]
[1757949976055,0.40117288,114730.0,114720.0,0.38295916]
[1757949976846,0.41992985,114730.0,114720.0,0.003]
[1757949977050,0.40764901,114730.0,114720.0,0.003]
[1757949977560,0.78472985,114730.0,114720.0,0.004]
[1757949977752,1.12924901,114730.0,114720.0,0.004]
[1757949977956,0.77469985,114730.0,114720.0,0.03944]
[1757949978252,1.11921901,114730.0,114720.0,0.03944]
[1757949978660,1.11921901,114730.0,114720.0,0.02618]
[1757949978856,1.11921901,114730.0,114720.0,0.004]
[1757949979056,0.77469985,114730.0,114720.0,0.02618]
[1757949979249,1.11921901,114730.0,114720.0,0.02618]
[1757949980268,1.11921901,114730.0,114720.0,0.004]
[1757949981558,0.02259,114690.0,114680.0,0.05534148]
[1757949981863,0.36710916,114690.0,114680.0,0.05534148]
[1757949982061,0.72790916,114690.0,114680.0,0.05534148]
[1757949982556,0.38339,114690.0,114680.0,0.05534148]
[1757949982762,0.38339,114690.0,114680.0,0.40386064]
[1757949982965,0.38339,114690.0,114680.0,0.38395916]
[1757949983164,0.38339,114690.0,114680.0,0.08544]
[1757949983461,0.38339,114690.0,114680.0,0.08844]
[1757949983862,0.38339,114690.0,114680.0,0.09592769]
[1757949984260,0.38339,114690.0,114680.0,0.08744]
[1757949985063,0.38339,114690.0,114680.0,0.09044]
[1757949985764,0.72838139,114690.0,114680.0,0.43543139]
[1757949985961,0.72838139,114690.0,114680.0,0.43343139]
[1757949986758,0.72838139,114690.0,114680.0,0.03844]
[1757949986961,0.75012454,114690.0,114680.0,0.03844]
[1757949987561,1.59632454,114690.0,114680.0,0.03844]
[1757949987968,1.94131593,114690.0,114680.0,0.03844]
[1757949988163,1.94131593,114690.0,114680.0,0.003]
[1757949988770,1.94131593,114690.0,114680.0,0.02452]
[1757949989769,1.94131593,114690.0,114680.0,0.003]
[1757949989970,1.94131593,114690.0,114680.0,0.02452]
[1757949990270,1.94131593,114690.0,114680.0,0.003]
[1757949990570,1.94131593,114690.0,114680.0,0.02452]
[1757949991768,2.19131593,114690.0,114680.0,0.003]
[1757949991964,2.22251924,114690.0,114680.0,0.003]
[1757949992169,1.53253646,114690.0,114680.0,0.003]
[1757949992369,2.22251924,114690.0,114680.0,0.003]
[1757949992871,2.22251924,114690.0,114680.0,0.001]
[1757949993067,2.22451924,114690.0,114680.0,0.001]
[1757949993272,2.56951063,114690.0,114680.0,0.001]
[1757949993476,0.02587,114680.0,114670.0,0.0001]
[1757949993670,0.40841315,114680.0,114670.0,0.02152]
[1757949993871,0.40841315,114680.0,114670.0,0.03516]
[1757949994174,1.09839593,114680.0,114670.0,0.03516]
[1757949994668,1.09839593,114680.0,114660.0,0.01336]
[1757949994869,0.72766139,114670.0,114660.0,0.03488]
[1757949995174,0.40441315,114670.0,114660.0,0.03478]
[1757949995576,0.0319,114660.0,114650.0,0.0001]
[1757949995786,0.41415186,114660.0,114650.0,0.03516]
[1757949995979,0.05335186,114660.0,114650.0,0.03516]
[1757949996283,1.03498186,114660.0,114640.0,0.01374]
[1757949996473,1.03498186,114660.0,114640.0,0.02162]
[1757949996474,0.38167,114650.0,114640.0,0.02162]
[1757949996781,0.42118445,114650.0,114640.0,0.03516]
[1757949997084,0.42118445,114650.0,114640.0,0.02152]
[1757949997273,0.41918445,114650.0,114630.0,0.01516]
[1757949997473,0.38267,114640.0,114630.0,0.03668]
[1757949997674,0.40541546,114640.0,114630.0,0.03658]
[1757949998675,0.40541546,114640.0,114630.0,0.38157139]
[1757949998876,0.74840685,114640.0,114630.0,0.38157139]
[1757949999180,0.40341546,114640.0,114630.0,0.38157139]
[1757949999480,0.74840685,114640.0,114630.0,0.38157139]
[1757949999673,0.74840685,114640.0,114630.0,0.03658]
[1757949999880,0.74840685,114640.0,114630.0,0.03758]
[1757950000280,1.09339824,114640.0,114630.0,0.03758]
[1757950000980,1.09739824,114640.0,114630.0,0.02394]
[1757950001182,1.09739824,114640.0,114630.0,0.00242]
[1757950001477,1.30033546,114640.0,114630.0,0.02394]
[1757950001679,1.99031824,114640.0,114630.0,0.02394]
[1757950002279,1.30033546,114640.0,114630.0,0.02394]
[1757950002472,1.98631824,114640.0,114630.0,0.53758]
[1757950003471,1.29633546,114640.0,114630.0,0.53758]
[1757950003671,1.98631824,114640.0,114630.0,0.53758]
[1757950004182,1.98631824,114640.0,114630.0,0.52394]
[1757950004382,1.98631824,114640.0,114630.0,0.50242]
[1757950004679,1.98631824,114640.0,114630.0,0.52394]
[1757950004984,1.98631824,114640.0,114630.0,0.53758]
[1757950006485,1.29633546,114640.0,114630.0,0.53758]
[1757950006682,1.98631824,114640.0,114630.0,0.53758]
[1757950007188,1.29633546,114640.0,114630.0,0.53758]
[1757950007486,1.98631824,114640.0,114630.0,0.53758]
[1757950007688,1.29633546,114640.0,114630.0,0.53758]
[1757950007882,1.98631824,114640.0,114630.0,0.53758]
[1757950008788,1.98631824,114640.0,114630.0,0.52394]
[1757950009286,1.98631824,114640.0,114630.0,0.50242]
[1757950009882,1.98631824,114640.0,114630.0,0.52394]
[1757950010083,1.98631824,114640.0,114630.0,0.50242]
[1757950010594,1.29633546,114640.0,114630.0,0.52394]
[1757950010784,1.98631824,114640.0,114630.0,0.52394]
[1757950011091,0.40341546,114640.0,114630.0,0.53758]
[1757950011287,0.40341546,114640.0,114630.0,0.88257139]
[1757950011492,0.40341546,114640.0,114630.0,1.13257139]
[1757950012292,0.74840685,114640.0,114630.0,1.13257139]
[1757950012992,0.74840685,114640.0,114630.0,0.78758]
[1757950013191,0.74840685,114640.0,114630.0,1.13257139]
[1757950013888,0.38154546,114640.0,114630.0,1.47756278]
[1757950014480,0.38154546,114640.0,114630.0,1.13257139]
[1757950018491,0.38154546,114640.0,114630.0,1.47756278]
[1757950018695,0.37456899,114650.0,114630.0,3.02156278]
[1757950018898,0.39664458,114650.0,114640.0,0.72651278]
[1757950019298,0.39664458,114650.0,114640.0,1.61007278]
[1757950019797,0.39653425,114650.0,114640.0,1.61007278]
[1757950020301,0.03973425,114650.0,114640.0,1.86007278]
[1757950020493,0.03973425,114650.0,114640.0,1.85991278]
[1757950020693,0.06209425,114650.0,114640.0,1.93040379]
[1757950021093,0.76788564,114650.0,114640.0,0.92069]
[1757950021401,0.76788564,114650.0,114640.0,0.38152139]
[1757950021603,0.76888564,114650.0,114640.0,0.38152139]
[1757950021897,0.42389425,114650.0,114640.0,0.38152139]
[1757950022098,0.76888564,114650.0,114640.0,0.38152139]
[1757950022291,0.42389425,114650.0,114640.0,0.38152139]
[1757950022491,0.76888564,114650.0,114640.0,0.38152139]
[1757950023095,0.42389425,114650.0,114640.0,0.03653]
[1757950023297,0.76888564,114650.0,114640.0,0.38152139]
[1757950024101,0.40153425,114650.0,114640.0,0.28653]
[1757950024292,0.42389425,114650.0,114640.0,0.97651278]
[1757950024497,0.42389425,114650.0,114640.0,0.28653]
[1757950024697,0.42389425,114650.0,114640.0,0.97651278]
[1757950025092,0.04073425,114650.0,114640.0,1.04642199]
[1757950026001,0.04073425,114650.0,114640.0,1.93158199]
[1757950028992,0.02296526,114650.0,114640.0,2.63737338]
[1757950029195,0.0001,114670.0,114660.0,0.03653]
[1757950029392,0.3608,114680.0,114670.0,0.01332]
[1757950029703,0.3608,114680.0,114670.0,0.38152139]